fUST/lending_fUST_20240910
["ID","MTS","AMOUNT","RATE_DAILY","PERIOD"]
[337625629,1725900638866,-500.0,0.0002975,2]
[337625632,1725900638881,-500.0,0.0002975,2]
[337625634,1725900638894,-500.0,0.0002975,2]
[337625637,1725900638908,-500.0,0.0002975,2]
[337625640,1725900638927,-500.0,0.0002975,2]
[337625642,1725900638941,-500.0,0.0002975,2]
[337625645,1725900638954,-500.0,0.0002975,2]
[337625647,1725900638966,-500.0,0.0002975,2]
[337625649,1725900638979,-500.0,0.0002975,2]
[337625652,1725900638993,-500.0,0.0002975,2]
[337625656,1725900639018,-493.67255373,0.0002975,2]
[337625658,1725900639034,-500.0,0.0002975,2]
[337625661,1725900639048,-500.0,0.0002975,2]
[337625664,1725900639063,-500.0,0.0002975,2]
[337625666,1725900639076,-200.0,0.0002975,2]
[337625669,1725900639090,-500.0,0.0002975,2]
[337625671,1725900639103,-500.0,0.0002975,2]
[337625673,1725900639117,-183.75410342,0.00029751,2]
[337625676,1725900639130,-253.56027533,0.00029751,2]
[337625678,1725900639142,-500.0,0.00029751,2]
[337625681,1725900639155,-582.37011957,0.00029751,2]
[337625683,1725900639169,-500.0,0.00029751,2]
[337625685,1725900639182,-349960.328895,0.00029752,4]
[337625689,1725900639194,-34770.8740184,0.00029752,4]
[337625692,1725900639206,-174980.164448,0.00029754,4]
[337625695,1725900639219,-156468.933083,0.00029754,4]
[337625697,1725900639233,-194.78,0.00029777,120]
[337625700,1725900639246,-90.43710791,0.000298,5]
[337625702,1725900639263,-150.112233,0.000298,9]
[337625704,1725900639275,-150.112233,0.000298,5]
[337625707,1725900639288,-150.112233,0.000298,9]
[337625709,1725900639301,-150.112233,0.000298,9]
[337625711,1725900639313,-150.112233,0.000298,10]
[337625714,1725900639328,-150.112233,0.000298,10]
[337625716,1725900639341,-150.112233,0.000298,9]
[337625718,1725900639353,-151.0,0.000298,7]
[337625721,1725900639365,-500.0,0.0002985,5]
[337625723,1725900639377,-500.0,0.000299,5]
[337625724,1725900639391,-500.0,0.000299,5]
[337625725,1725900639403,-500.0,0.000299,5]
[337625726,1725900639415,-159.27092859,0.000299,5]
[337625727,1725900639427,-529.47506892,0.000299,5]
[337625728,1725900639440,-268.97058416,0.000299,5]
[337625729,1725900639452,-500.0,0.000299,5]
[337625731,1725900639465,-500.0,0.000299,5]
[337625732,1725900639478,-304.55000664,0.000299,5]
[337625734,1725900639490,-500.53596247,0.000299,5]
[337625736,1725900639502,-500.0,0.000299,2]
[337625738,1725900639514,-500.0,0.0002992,5]
[337625739,1725900639526,-500.0,0.00029973,5]
[337625740,1725900639538,-2000.0,0.0002998,2]
[337625741,1725900639551,-2068.80898226,0.0002998,2]
[337625742,1725900639563,-17385.4370092,0.0002999,4]
[337625743,1725900639576,-151.0,0.0003,120]
[337625744,1725900639588,-1500.0,0.0003,2]
[337625745,1725900639599,-2112.15,0.0003,14]
[337625746,1725900639611,-32762.14,0.0003,14]
[337625747,1725900639624,-557.89,0.0003,14]
[337625748,1725900639635,-2037.96,0.0003,7]
[337625749,1725900639648,-361.66,0.0003,14]
[337625750,1725900639660,-210.0,0.0003,2]
[337625751,1725900639681,-17385.4370092,0.0003001,4]
[337625752,1725900639693,-9406.82,0.0003002,10]
[337625753,1725900639705,-231.81082802,0.0003002,2]
[337625754,1725900639719,-150.112234,0.000301,10]
[337625755,1725900639734,-1500.0,0.00030129,2]
[337625756,1725900639746,-500.0,0.00030137,2]
[337625757,1725900639758,-500.0,0.00030137,2]
[337625758,1725900639770,-500.0,0.00030137,2]
[337625760,1725900639782,-250.0,0.00030137,2]
[337625761,1725900639795,-500.0,0.00030137,2]
[337625762,1725900639808,-500.0,0.00030137,2]
[337625763,1725900639820,-500.0,0.00030137,2]
[337625764,1725900639835,-500.0,0.00030137,2]
[337625765,1725900639848,-500.0,0.00030137,2]
[337625766,1725900639861,-500.0,0.00030137,2]
[337625767,1725900639873,-500.0,0.00030137,2]
[337625770,1725900639886,-500.0,0.00030137,2]
[337625771,1725900639898,-500.0,0.00030137,2]
[337625772,1725900639910,-500.0,0.00030137,2]
[337625773,1725900639927,-500.0,0.000302,5]
[337625774,1725900639939,-1500.0,0.00030258,2]
[337625775,1725900639952,-1500.0,0.00030387,2]
[337625776,1725900639965,-1500.0,0.00030516,2]
[337625777,1725900639978,-1500.0,0.00030645,2]
[337625778,1725900639991,-1500.0,0.00030774,2]
[337625779,1725900640004,-506.72152673,0.00030782,2]
[337625780,1725900640016,-1500.0,0.00030903,2]
[337625781,1725900640030,-1500.0,0.00031032,2]
[337625782,1725900640042,-2628.26,0.00031111,3]
[337625783,1725900640055,-1314.12,0.00031111,3]
[337625784,1725900640067,-657.06,0.00031111,3]
[337625785,1725900640079,-328.54,0.00031111,3]
[337625786,1725900640092,-1500.0,0.00031161,2]
[337625787,1725900640102,-500.7970442,0.0003127,5]
[337625788,1725900640113,-852.04877625,0.0003127,5]
[337625789,1725900640122,-203.81585332,0.0003127,5]
[337625790,1725900640133,-1000.0,0.0003129,5]
[337625791,1725900640143,-1500.0,0.0003129,2]
[337625792,1725900640153,-17385.4370092,0.00031409,4]
[337625793,1725900640163,-1500.0,0.00031419,2]
[337625794,1725900640176,-1500.0,0.00031548,2]
[337625795,1725900640185,-1000.0,0.0003157,5]
[337625796,1725900640195,-150.112233,0.000316,6]
[337625797,1725900640462,-2112.15,0.000316,14]
[337625798,1725900640481,-32762.14,0.000316,14]
[337625799,1725900640501,-557.89,0.000316,14]
[337625800,1725900640511,-2037.96,0.000316,7]
[337625801,1725900640521,-151.0,0.000316,7]
[337625802,1725900640531,-151.0,0.000316,7]
[337625803,1725900640541,-532.579088,0.000316,7]
[337625804,1725900640550,-532.579088,0.000316,7]
[337625805,1725900640561,-154.074996,0.000316,7]
[337625806,1725900640570,-1500.0,0.00031677,2]
[337625807,1725900640581,-361.66,0.000317,14]
[337625808,1725900640591,-17385.4370092,0.00031797,4]
[337625809,1725900640601,-1500.0,0.00031806,2]
[337625810,1725900640611,-420.0,0.00031831,2]
[337625811,1725900640620,-506.72152673,0.00031888,2]
[337625812,1725900640630,-500.0,0.000319,5]
[337625813,1725900640640,-500.0,0.000319,2]
[337625814,1725900640649,-500.0,0.000319,5]
[337625815,1725900640659,-1500.0,0.00031935,2]
[337625816,1725900640674,-201.75,0.00032054,7]
[337625817,1725900640684,-1500.0,0.00032065,2]
[337625818,1725900640694,-1500.0,0.00032194,2]
[337625819,1725900640706,-150.112233,0.000322,10]
[337625820,1725900640716,-1500.0,0.00032323,2]
[337625821,1725900640726,-1500.0,0.00032452,2]
[337625822,1725900640736,-151.0,0.00032452,7]
[337625823,1725900640746,-158.39303,0.00032452,7]
[337625824,1725900640756,-4171.440425,0.00032452,7]
[337625825,1725900640766,-4171.440425,0.00032452,7]
[337625826,1725900640775,-1500.0,0.00032581,2]
[337625827,1725900640785,-1500.0,0.0003271,2]
[337625828,1725900640795,-1610.272842,0.0003271,7]
[337625829,1725900640805,-1610.272842,0.0003271,7]
[337625830,1725900640814,-151.0,0.0003271,7]
[337625831,1725900640824,-508.56558,0.0003271,7]
[337625832,1725900640833,-508.56558,0.0003271,7]
[337625833,1725900640843,-151.250872,0.0003271,2]
[337625834,1725900640852,-184.944685,0.0003271,7]
[337625835,1725900640861,-184.944685,0.0003271,7]
[337625836,1725900640872,-180.373083,0.0003271,7]
[337625837,1725900640882,-180.373083,0.0003271,7]
[337625838,1725900640891,-151.0,0.0003271,7]
[337625839,1725900640901,-150.112233,0.000328,9]
[337625840,1725900640910,-152.065709,0.00032821,7]
[337625841,1725900640923,-151.0,0.00032821,7]
[337625842,1725900640933,-1500.0,0.00032839,2]
[337625843,1725900640943,-17385.4370092,0.00032867,5]
[337625844,1725900640952,-23250.7463298,0.00032877,2]
[337625845,1725900640962,-500.0,0.00032877,2]
[337625846,1725900640971,-1500.0,0.00032968,2]
[337625847,1725900640980,-506.72152673,0.00032993,2]
[337625848,1725900640989,-611.0,0.00033,2]
[337625849,1725900641000,-210.0,0.00033,2]
[337625850,1725900641010,-210.0,0.00033,2]
[337625851,1725900641019,-1500.0,0.00033097,2]
[337625852,1725900641028,-328400.68115,0.00033099,2]
[337625853,1725900641039,-2037.96,0.000331,30]
[337625854,1725900641050,-611.0,0.00033151,2]
[337625855,1725900641061,-17385.4370092,0.0003319,5]
[337625856,1725900641070,-2112.15,0.000332,14]
[337625857,1725900641080,-32762.14,0.000332,14]
[337625858,1725900641089,-557.89,0.000332,14]
[337625859,1725900641099,-1500.0,0.00033226,2]
[337625860,1725900641108,-500.0,0.0003327,5]
[337625861,1725900641119,-150.112233,0.000333,6]
[337625862,1725900641128,-361.66,0.000333,14]
[337625863,1725900641138,-1500.0,0.00033355,2]
[337625864,1725900641151,-611.0,0.00033425,2]
[337625865,1725900641160,-1500.0,0.00033484,2]
[337625866,1725900641174,-1500.0,0.00033613,2]
[337625867,1725900641183,-611.0,0.00033699,2]
[337625868,1725900641193,-1500.0,0.00033742,2]
[337625869,1725900641202,-658.39246906,0.00033795,5]
[337625870,1725900641212,-500.0,0.0003382,2]
[337625871,1725900641221,-669.0967055,0.00033871,2]
[337625872,1725900641231,-150.112233,0.000339,10]
[337625873,1725900641241,-611.0,0.00033973,2]
[337625874,1725900641253,-529.1127158,0.00034,5]
[337625875,1725900641262,-1500.0,0.00034075,5]
[337625876,1725900641271,-506.72152673,0.00034099,2]
[337625877,1725900641281,-153.0,0.0003411,2]
[337625878,1725900641290,-153.0,0.0003411,2]
[337625879,1725900641301,-153.0,0.0003411,2]
[337625880,1725900641310,-337.7365135,0.00034131,2]
[337625881,1725900641321,-153.0,0.00034131,2]
[337625882,1725900641333,-1000.0,0.00034246,60]
[337625883,1725900641342,-611.0,0.00034247,2]
[337625884,1725900641351,-706.918206,0.0003432,2]
[337625885,1725900641361,-150.112233,0.000344,10]
[337625886,1725900641370,-151.0,0.000344,14]
[337625887,1725900641379,-363.637776,0.000344,14]
[337625888,1725900641389,-151.0,0.000344,14]
[337625889,1725900641399,-151.0,0.000344,14]
[337625890,1725900641408,-363.637776,0.000344,14]
[337625891,1725900641422,-465.744916,0.000344,14]
[337625892,1725900641431,-465.744916,0.000344,14]
[337625893,1725900641441,-611.0,0.00034521,2]
[337625894,1725900641454,-208.2649181,0.00034521,2]
[337625895,1725900641463,-208.2649181,0.00034521,2]
[337625896,1725900641472,-208.2649181,0.00034521,2]
[337625897,1725900641482,-207.6726394,0.00034521,2]
[337625898,1725900641492,-153.0,0.00034539,2]
[337625899,1725900641501,-153.0,0.00034539,2]
[337625900,1725900641511,-153.0,0.00034539,2]
[337625901,1725900641520,-153.0,0.00034539,2]
[337625902,1725900641530,-153.0,0.00034539,2]
[337625903,1725900641540,-305.011856,0.00034539,14]
[337625904,1725900641549,-305.011856,0.00034539,14]
[337625905,1725900641559,-358.168872,0.00034539,14]
[337625906,1725900641569,-358.168872,0.00034539,14]
[337625907,1725900641578,-151.0,0.00034539,14]
[337625908,1725900641588,-2037.96,0.000346,30]
[337625909,1725900641597,-52156.3110276,0.00034664,5]
[337625910,1725900641607,-162610.06856268,0.00034674,2]
[337625911,1725900641616,-151.0,0.00034674,14]
[337625912,1725900641626,-151.0,0.00034674,14]
[337625913,1725900641635,-151.0,0.00034674,14]
[337625914,1725900641645,-151.0,0.00034674,14]
[337625915,1725900641654,-151.0,0.00034674,14]
[337625916,1725900641666,-264.651072,0.00034674,14]
[337625917,1725900641677,-151.0,0.00034674,14]
[337625918,1725900641686,-151.0,0.00034674,14]
[337625919,1725900641696,-1610.272842,0.00034674,14]
[337625920,1725900641706,-1610.272842,0.00034674,14]
[337625921,1725900641716,-151.0,0.00034674,14]
[337625922,1725900641726,-508.56558,0.00034674,14]
[337625923,1725900641736,-508.56558,0.00034674,14]
[337625924,1725900641746,-151.0,0.00034674,14]
[337625925,1725900641757,-532.579088,0.00034674,14]
[337625926,1725900641766,-532.579088,0.00034674,14]
[337625927,1725900641776,-4171.440425,0.00034674,14]
[337625928,1725900641787,-4171.440425,0.00034674,14]
[337625929,1725900641796,-245.978072,0.00034674,14]
[337625930,1725900641806,-245.978072,0.00034674,14]
[337625931,1725900641815,-184.944685,0.00034674,14]
[337625932,1725900641825,-184.944685,0.00034674,14]
[337625933,1725900641834,-180.373083,0.00034674,14]
[337625934,1725900641844,-180.373083,0.00034674,14]
[337625935,1725900641853,-151.0,0.00034674,14]
[337625936,1725900641863,-151.0,0.00034674,14]
[337625937,1725900641873,-151.0,0.00034674,14]
[337625938,1725900641882,-151.0,0.00034674,14]
[337625939,1725900641891,-151.0,0.00034674,14]
[337625940,1725900641901,-152.328802,0.00034674,14]
[337625941,1725900641910,-151.0,0.00034674,14]
[337625942,1725900641925,-151.0,0.00034674,14]
[337625943,1725900641935,-151.0,0.00034674,14]
[337625944,1725900641944,-3746.848215,0.00034674,14]
[337625945,1725900641953,-3746.848215,0.00034674,14]
[337625946,1725900641963,-151.0,0.00034674,2]
[337625947,1725900641972,-2112.15,0.000349,14]
[337625948,1725900641981,-32762.14,0.000349,14]
[337625949,1725900641991,-557.89,0.000349,14]
[337625950,1725900642001,-305.011856,0.000349,14]
[337625951,1725900642011,-305.011856,0.000349,14]
[337625952,1725900642021,-358.168872,0.000349,14]
[337625953,1725900642031,-358.168872,0.000349,14]
[337625954,1725900642040,-151.0,0.000349,14]
[337625955,1725900642050,-582.339,0.00034952,2]
[337625956,1725900642059,-295.176,0.00034952,2]
[337625957,1725900642069,-150.318,0.00034952,2]
[337625958,1725900642079,-208.2649181,0.00034953,2]
[337625959,1725900642088,-208.2649181,0.00034953,2]
[337625960,1725900642097,-150.47855342,0.00035,2]
[337625961,1725900642107,-150.112233,0.00035,7]
[337625962,1725900642116,-361.66,0.00035,14]
[337625963,1725900642126,-587.0,0.00035014,2]
[337625964,1725900642136,-388.6440336,0.00035068,2]
[337625965,1725900642145,-506.72152673,0.00035204,2]
[337625966,1725900642155,-1000.0,0.00035205,60]
[337625967,1725900642166,-151.975802,0.00035205,14]
[337625969,1725900642176,-363.637776,0.00035205,14]
[337625970,1725900642186,-151.0,0.00035205,14]
[337625972,1725900642195,-363.637776,0.00035205,14]
[337625973,1725900642204,-465.744916,0.00035205,14]
[337625975,1725900642213,-465.744916,0.00035205,14]
[337625977,1725900642222,-4749.09514052,0.000354,2]
[337625979,1725900642232,-2861.99160529,0.00035429,2]
[337625981,1725900642241,-151.0,0.00035516,14]
[337625983,1725900642252,-7042.938978,0.000356,2]
[337625985,1725900642264,-150.148584,0.000356,2]
[337625987,1725900642274,-150.01,0.00035615,2]
[337625990,1725900642285,-5229.58731193,0.00035615,2]
[337625992,1725900642294,-16254.57389908,0.00035616,21]
[337625994,1725900642306,-150.0,0.00035616,14]
[337625996,1725900642315,-151.0,0.00035616,14]
[337625999,1725900642325,-500.0,0.00035616,14]
[337626002,1725900642335,-500.0,0.00035616,14]
[337626005,1725900642347,-877.82,0.00035616,14]
[337626008,1725900642357,-776.34,0.00035616,14]
[337626011,1725900642366,-525.69215942,0.00035616,14]
[337626014,1725900642375,-500.0,0.00035616,14]
[337626017,1725900642385,-500.0,0.00035616,14]
[337626020,1725900642394,-500.0,0.00035616,14]
[337626024,1725900642404,-501.45512182,0.00035616,14]
[337626027,1725900642414,-502.39211463,0.00035616,14]
[337626031,1725900642425,-500.69436653,0.00035616,14]
[337626034,1725900642434,-594.62,0.00035616,14]
[337626037,1725900642443,-500.0,0.00035616,14]
[337626040,1725900642453,-500.0,0.00035616,14]
[337626042,1725900642462,-500.0,0.00035616,14]
[337626044,1725900642471,-500.0,0.00035616,14]
[337626046,1725900642481,-500.0,0.00035616,14]
[337626048,1725900642490,-500.0,0.00035616,14]
[337626051,1725900642500,-500.0,0.00035616,14]
[337626053,1725900642509,-500.0,0.00035616,14]
[337626055,1725900642518,-500.0,0.00035616,14]
[337626057,1725900642529,-500.0,0.00035616,14]
[337626059,1725900642539,-500.0,0.00035616,14]
[337626061,1725900642548,-500.0,0.00035616,14]
[337626063,1725900642558,-501.62178188,0.00035616,14]
[337626065,1725900642568,-500.0,0.00035616,14]
[337626067,1725900642578,-500.0,0.00035616,14]
[337626069,1725900642588,-286.40207011,0.00035616,14]
[337626071,1725900642598,-500.0,0.00035616,14]
[337626073,1725900642607,-500.0,0.00035616,14]
[337626074,1725900642617,-501.55924787,0.00035616,14]
[337626076,1725900642626,-500.0,0.00035616,14]
[337626078,1725900642638,-587.88,0.00035616,14]
[337626080,1725900642649,-502.66399721,0.00035616,14]
[337626081,1725900642658,-1263.53,0.00035616,7]
[337626082,1725900642669,-500.0,0.00035616,14]
[337626083,1725900642679,-500.0,0.00035616,14]
[337626084,1725900642698,-500.0,0.00035616,14]
[337626085,1725900642712,-500.0,0.00035616,14]
[337626086,1725900642723,-502.17225633,0.00035616,14]
[337626087,1725900642734,-628.42,0.00035616,14]
[337626088,1725900642745,-500.0,0.00035616,14]
[337626089,1725900642756,-500.0,0.00035616,14]
[337626090,1725900642767,-500.0,0.00035616,14]
[337626091,1725900642778,-887.17,0.00035616,14]
[337626092,1725900642788,-500.0,0.00035616,14]
[337626093,1725900642798,-500.7802698,0.00035616,14]
[337626094,1725900642809,-500.0,0.00035616,14]
[337626095,1725900642819,-500.0,0.00035616,14]
[337626096,1725900642829,-500.0,0.00035616,14]
[337626097,1725900642839,-500.0,0.00035616,14]
[337626098,1725900642849,-500.0,0.00035616,14]
[337626099,1725900642859,-500.0,0.00035616,14]
[337626100,1725900642869,-1327.47,0.00035616,14]
[337626101,1725900642879,-500.0,0.00035616,14]
[337626102,1725900642890,-500.0,0.00035616,14]
[337626103,1725900642900,-571.68,0.00035616,14]
[337626104,1725900642911,-569.88,0.00035616,14]
[337626105,1725900642927,-448.34734926,0.00035616,14]
[337626106,1725900642940,-1483.96,0.00035616,14]
[337626107,1725900642951,-500.0,0.00035616,14]
[337626108,1725900642961,-500.0,0.00035616,14]
[337626109,1725900642971,-502.40057922,0.00035616,14]
[337626110,1725900642981,-507.8829069,0.00035616,14]
[337626111,1725900642991,-500.0,0.00035616,14]
[337626112,1725900643001,-500.0,0.00035616,14]
[337626113,1725900643011,-500.0,0.00035616,14]
[337626114,1725900643021,-500.0,0.00035616,14]
[337626115,1725900643031,-500.0,0.00035616,14]
[337626116,1725900643041,-500.0,0.00035616,14]
[337626117,1725900643051,-511.21213967,0.00035616,14]
[337626118,1725900643061,-502.35896847,0.00035616,14]
[337626119,1725900643071,-500.0,0.00035616,14]
[337626120,1725900643081,-513.66900791,0.00035616,14]
[337626121,1725900643092,-500.0,0.00035616,14]
[337626122,1725900643102,-500.0,0.00035616,14]
[337626123,1725900643113,-500.0,0.00035616,14]
[337626124,1725900643124,-4162.49,0.00035616,7]
[337626125,1725900643135,-500.0,0.00035616,14]
[337626126,1725900643146,-500.0,0.00035616,14]
[337626127,1725900643157,-500.0,0.00035616,14]
[337626128,1725900643170,-723.45,0.00035616,14]
[337626129,1725900643181,-500.0,0.00035616,14]
[337626130,1725900643191,-558.78,0.00035616,14]
[337626132,1725900643201,-501.53743628,0.00035616,14]
[337626133,1725900643211,-500.0,0.00035616,14]
[337626134,1725900643221,-500.0,0.00035616,14]
[337626135,1725900643231,-500.0,0.00035616,14]
[337626137,1725900643240,-1922.11,0.00035616,14]
[337626138,1725900643252,-242.65168795,0.00035616,14]
[337626139,1725900643264,-500.0,0.00035616,14]
[337626140,1725900643273,-500.0,0.00035616,14]
[337626141,1725900643284,-501.25385802,0.00035616,14]
[337626142,1725900643295,-500.0,0.00035616,14]
[337626143,1725900643305,-500.0,0.00035616,14]
[337626144,1725900643316,-500.0,0.00035616,14]
[337626145,1725900643326,-500.0,0.00035616,14]
[337626146,1725900643337,-500.0,0.00035616,14]
[337626147,1725900643347,-501.64698111,0.00035616,14]
[337626148,1725900643357,-513.24691996,0.00035616,14]
[337626149,1725900643367,-520.07826471,0.00035616,14]
[337626150,1725900643377,-500.0,0.00035616,14]
[337626151,1725900643387,-500.0,0.00035616,14]
[337626152,1725900643398,-500.0,0.00035616,14]
[337626153,1725900643408,-500.0,0.00035616,14]
[337626154,1725900643420,-597.62,0.00035616,14]
[337626155,1725900643432,-500.0,0.00035616,14]
[337626156,1725900643441,-501.4238633,0.00035616,14]
[337626157,1725900643452,-500.0,0.00035616,14]
[337626158,1725900643463,-505.86610554,0.00035616,14]
[337626159,1725900643473,-1178.66,0.00035616,14]
[337626160,1725900643482,-500.0,0.00035616,14]
[337626161,1725900643493,-500.0,0.00035616,14]
[337626162,1725900643503,-504.3628324,0.00035616,14]
[337626163,1725900643513,-232.38902857,0.00035616,14]
[337626164,1725900643524,-310.96441939,0.00035616,14]
[337626165,1725900643983,-189.03558061,0.00035616,14]
[337626166,1725900643993,-500.0,0.00035616,14]
[337626167,1725900644003,-1491.1,0.00035616,14]
[337626168,1725900644012,-698.06,0.00035616,14]
[337626169,1725900644023,-500.0,0.00035616,14]
[337626170,1725900644033,-512.76458089,0.00035616,14]
[337626171,1725900644043,-500.0,0.00035616,14]
[337626172,1725900644053,-860.27,0.00035616,14]
[337626173,1725900644063,-500.0,0.00035616,14]
[337626174,1725900644073,-500.0,0.00035616,14]
[337626175,1725900644083,-500.0,0.00035616,14]
[337626176,1725900644092,-867.74,0.00035616,14]
[337626177,1725900644102,-585.1,0.00035616,14]
[337626178,1725900644112,-500.0,0.00035616,10]
[337626179,1725900644122,-500.0,0.00035616,14]
[337626180,1725900644132,-500.0,0.00035616,14]
[337626181,1725900644143,-500.0,0.00035616,14]
[337626182,1725900644154,-500.0,0.00035616,14]
[337626183,1725900644165,-960.65,0.00035616,14]
[337626184,1725900644175,-571.42,0.00035616,14]
[337626185,1725900644184,-643.50107225,0.00035616,14]
[337626186,1725900644194,-513.30890607,0.00035616,14]
[337626187,1725900644204,-899.75,0.00035616,14]
[337626188,1725900644214,-151.0,0.00035616,14]
[337626189,1725900644224,-500.0,0.00035616,14]
[337626190,1725900644234,-556.55,0.00035616,14]
[337626191,1725900644245,-151.0,0.00035616,14]
[337626192,1725900644257,-151.0,0.00035616,14]
[337626193,1725900644270,-500.0,0.00035616,14]
[337626194,1725900644279,-151.0,0.00035616,14]
[337626195,1725900644289,-151.0,0.00035616,14]
[337626196,1725900644299,-897.94,0.00035616,14]
[337626197,1725900644309,-897.94,0.00035616,14]
[337626198,1725900644319,-501.69705807,0.00035616,14]
[337626199,1725900644328,-897.94,0.00035616,14]
[337626200,1725900644339,-522.8,0.00035616,14]
[337626201,1725900644351,-897.94,0.00035616,14]
[337626202,1725900644361,-897.94,0.00035616,14]
[337626203,1725900644370,-897.94,0.00035616,14]
[337626204,1725900644380,-897.94,0.00035616,14]
[337626205,1725900644390,-897.94,0.00035616,14]
[337626206,1725900644400,-897.94,0.00035616,14]
[337626207,1725900644410,-897.94,0.00035616,14]
[337626208,1725900644423,-897.94,0.00035616,14]
[337626209,1725900644432,-897.94,0.00035616,14]
[337626210,1725900644442,-500.0,0.00035616,14]
[337626211,1725900644452,-897.94,0.00035616,14]
[337626212,1725900644461,-897.94,0.00035616,14]
[337626213,1725900644471,-897.94,0.00035616,14]
[337626214,1725900644480,-897.94,0.00035616,14]
[337626215,1725900644490,-897.94,0.00035616,14]
[337626216,1725900644499,-897.94,0.00035616,14]
[337626217,1725900644509,-897.94,0.00035616,14]
[337626218,1725900644519,-897.94,0.00035616,14]
[337626219,1725900644529,-151.0,0.00035616,14]
[337626220,1725900644539,-897.94,0.00035616,14]
[337626221,1725900644548,-151.0,0.00035616,14]
[337626222,1725900644559,-151.0,0.00035616,14]
[337626223,1725900644569,-897.94,0.00035616,14]
[337626224,1725900644578,-151.0,0.00035616,14]
[337626225,1725900644587,-151.0,0.00035616,14]
[337626226,1725900644596,-897.94,0.00035616,14]
[337626227,1725900644606,-151.0,0.00035616,14]
[337626228,1725900644615,-897.98,0.00035616,14]
[337626229,1725900644625,-151.0,0.00035616,14]
[337626230,1725900644635,-151.0,0.00035616,14]
[337626231,1725900644645,-151.0,0.00035616,14]
[337626232,1725900644654,-501.9617986,0.00035616,14]
[337626233,1725900644665,-500.0,0.00035616,14]
[337626234,1725900644675,-151.0,0.00035616,14]
[337626235,1725900644685,-151.0,0.00035616,14]
[337626236,1725900644694,-151.0,0.00035616,14]
[337626237,1725900644704,-151.0,0.00035616,14]
[337626238,1725900644713,-151.0,0.00035616,14]
[337626239,1725900644722,-212.229401,0.00035616,14]
[337626240,1725900644732,-1178.91,0.00035616,14]
[337626241,1725900644743,-505.0,0.00035616,14]
[337626242,1725900644753,-151.0,0.00035616,14]
[337626243,1725900644763,-151.0,0.00035616,14]
[337626244,1725900644773,-500.0,0.00035616,14]
[337626245,1725900644782,-621.86,0.00035616,14]
[337626246,1725900644793,-500.0,0.00035616,14]
[337626247,1725900644802,-833.33,0.00035616,14]
[337626248,1725900644811,-500.0,0.00035616,14]
[337626249,1725900644821,-151.0,0.00035616,14]
[337626250,1725900644831,-151.0,0.00035616,14]
[337626251,1725900644840,-503.72103106,0.00035616,14]
[337626252,1725900644849,-151.0,0.00035616,14]
[337626253,1725900644859,-151.0,0.00035616,14]
[337626254,1725900644869,-151.0,0.00035616,14]
[337626255,1725900644878,-500.0,0.00035616,14]
[337626256,1725900644888,-500.0,0.00035616,14]
[337626257,1725900644898,-500.0,0.00035616,14]
[337626258,1725900644908,-500.0,0.00035616,14]